bitfinex-derivatives/quotes_ETHF0:USTF0_20250410
["timestamp","ask_amount","ask_price","bid_price","bid_amount"]
[1744277241092,10.29024,1595.8,1595.7,0.00938027]
[1744277244389,4.46144,1595.8,1595.7,0.00938027]
[1744277244797,4.46144,1595.8,1595.7,1.67198027]
[1744277247796,1.25364,1595.8,1595.7,1.67198027]
[1744277251299,7.32499771,1595.9,1595.7,1.67198027]
[1744277251502,7.32499771,1595.9,1595.8,2.16314]
[1744277251794,1.26294027,1595.9,1595.8,2.16314]
[1744277252099,0.00938027,1595.9,1595.8,13.32214]
[1744277252298,0.00938027,1595.9,1595.8,16.52994]
[1744277253198,1.26294027,1595.9,1595.8,15.2763]
[1744277253499,0.00938027,1595.9,1595.8,16.52994]
[1744277254597,7.31561744,1596.1,1596.0,1.25348]
[1744277254795,4.75441744,1596.1,1596.0,9.46128]
[1744277255001,3.28781744,1596.1,1596.0,15.45728]
[1744277255707,3.28781744,1596.1,1596.0,10.45728]
[1744277255999,3.28781744,1596.1,1596.0,14.94328]
[1744277256188,3.28781744,1596.1,1596.0,10.45728]
[1744277256391,0.00938027,1596.2,1596.1,1.2534]
[1744277257403,1.26270027,1596.2,1596.1,1.2534]
[1744277257704,1.26270027,1596.2,1596.1,0.9192]
[1744277257903,1.26270027,1596.2,1596.1,2.1726]
[1744277258203,1.26270027,1596.2,1596.1,2.5985]
[1744277258502,1.26270027,1596.2,1596.1,3.8519]
[1744277259398,0.00938027,1596.2,1596.1,8.8519]
[1744277261296,0.00938027,1596.2,1596.1,3.8519]
[1744277261904,4.46085,1596.6,1596.5,1.25309]
[1744277262108,10.96952465,1596.7,1596.4,3.2078]
[1744277262406,10.96952465,1596.7,1596.6,1.25301]
[1744277262596,10.96946465,1596.7,1596.6,1.25301]
[1744277263103,10.96946465,1596.7,1596.6,2.15531]
[1744277263598,10.96946465,1596.7,1596.6,0.9023]
[1744277263799,1.25301,1596.6,1596.5,1.5483]
[1744277264003,5.71635,1596.6,1596.2,8.98607]
[1744277264300,1.25324,1596.3,1596.2,3.2078]
[1744277264604,1.25324,1596.3,1596.2,4.7561]
[1744277266704,1.25324,1596.3,1596.2,3.2078]
[1744277267705,1.25324,1596.3,1596.2,6.12492]
[1744277268109,1.25324,1596.3,1596.2,4.8716]
[1744277269106,1.25324,1596.3,1596.2,6.12492]
[1744277269302,1.25323,1596.4,1596.3,1.25324]
[1744277269509,8.28662027,1596.8,1596.3,1.25324]
[1744277269510,8.28662027,1596.8,1596.5,1.25308]
[1744277269709,1.25316,1596.4,1596.3,5.4607]
[1744277270005,1.25316,1596.4,1596.3,7.1194]
[1744277271106,1.25316,1596.4,1596.3,6.1827]
[1744277271303,1.25324,1596.3,1596.2,3.2078]
[1744277271507,1.25332,1596.2,1596.1,0.9259]
[1744277271810,1.25332,1596.2,1596.1,2.5219]
[1744277273804,1.25348,1596.0,1595.9,4.1445]
[1744277274109,1.25356,1595.9,1595.8,0.9166]
[1744277274311,1.25356,1595.9,1595.8,2.5126]
[1744277274312,2.80466,1595.9,1595.8,2.5126]
[1744277275418,1.25356,1595.9,1595.8,2.5126]
[1744277275613,1.25352,1596.0,1595.8,3.76617]
[1744277275812,1.25352,1596.0,1595.9,1.649]
[1744277276517,2.20944,1596.1,1595.9,1.649]
[1744277276717,1.25344,1596.1,1595.9,2.9025]
[1744277276908,1.25344,1596.1,1596.0,1.649]
[1744277279519,1.25344,1596.1,1596.0,2.90248]
[1744277280119,1.25344,1596.1,1596.0,1.649]
[1744277280315,1.25344,1596.1,1596.0,2.90248]
[1744277280515,1.5465,1596.2,1596.1,1.2534]
[1744277280516,1.25336,1596.2,1596.1,1.2534]
[1744277280722,10.96966465,1596.5,1596.1,2.4611]
[1744277281015,10.96967465,1596.5,1596.3,1.25321]
[1744277281219,10.96967465,1596.5,1596.4,1.547]
[1744277281816,1.25324,1596.3,1596.2,3.2078]
[1744277282319,1.25324,1596.3,1596.2,6.00812]
[1744277282515,1.25321,1596.4,1596.3,1.25324]
[1744277282714,1.25321,1596.4,1596.3,2.80024]
[1744277282914,1.25316,1596.4,1596.3,2.80024]
[1744277283123,1.25316,1596.4,1596.3,1.547]
[1744277283517,2.93426,1596.4,1596.3,2.80024]
[1744277283822,1.25316,1596.4,1596.3,1.547]
[1744277284418,1.25332,1596.2,1596.1,7.63594]
[1744277284617,1.25332,1596.2,1596.1,9.21414]
[1744277284919,1.25332,1596.2,1596.1,7.9608]
[1744277285113,1.25332,1596.2,1596.1,1.5782]
[1744277285319,0.9176,1596.3,1596.0,5.996]
[1744277285320,1.2534,1596.1,1596.0,5.996]
[1744277285519,1.2534,1596.1,1596.0,7.5742]
[1744277286025,1.2534,1596.1,1596.0,1.5782]
[1744277286323,1.25356,1595.9,1595.8,11.49569]
[1744277286524,2.85364,1596.0,1595.8,11.49569]
[1744277286717,2.85364,1596.0,1595.9,1.5445]
[1744277288926,3.2078,1596.2,1595.9,1.5445]
[1744277289127,1.25332,1596.2,1596.1,1.25338]
[1744277289430,2.85693,1596.4,1596.3,1.25324]
[1744277289623,1.25323,1596.4,1596.2,1.25326]
[1744277289937,1.25323,1596.4,1596.3,2.5885]
[1744277290434,10.96976465,1596.4,1596.3,2.5885]
[1744277290926,10.96976465,1596.4,1596.3,3.84174]
[1744277291136,9.71653465,1596.4,1596.3,3.84174]
[1744277292733,10.96969465,1596.4,1596.3,3.84174]
[1744277293029,10.96969465,1596.4,1596.3,2.5885]
[1744277293428,9.71653465,1596.4,1596.3,3.84174]
[1744277294838,9.71653465,1596.4,1596.3,9.83774]
[1744277295225,1.25306,1596.6,1596.5,1.25309]
[1744277295531,1.25306,1596.6,1596.5,3.2078]
[1744277295831,1.25306,1596.6,1596.5,4.46089]
[1744277296037,1.25306,1596.6,1596.5,4.8086]
[1744277296334,2.92946,1596.6,1596.5,1.6008]
[1744277297435,1.25316,1596.4,1596.3,6.9296]
[1744277297635,1.25316,1596.4,1596.3,5.996]
[1744277298128,1.25316,1596.4,1595.9,7.902]
[1744277298129,10.71355,1596.4,1595.9,6.3012]
[1744277298326,1.25337,1596.2,1596.0,6.06202]
[1744277298527,1.25337,1596.2,1596.1,1.6008]
[1744277298929,1.25328,1596.3,1596.2,1.25331]
[1744277299135,1.25328,1596.3,1596.2,2.12081]
[1744277300136,1.25328,1596.3,1596.2,0.8675]
[1744277300534,1.25332,1596.2,1596.1,1.6008]
[1744277300740,2.88612,1596.2,1596.1,1.6008]
[1744277301627,1.6328,1596.2,1595.9,7.51702]
[1744277301823,1.6328,1596.1,1595.9,9.20442]
[1744277302035,1.25348,1596.0,1595.9,2.5549]
[1744277302238,1.25364,1595.8,1595.7,5.47518027]
[1744277302435,1.25364,1595.8,1595.7,7.15578027]
[1744277302626,1.25364,1595.8,1595.7,2.64278027]
[1744277303638,1.68698027,1595.9,1595.7,2.64278027]
[1744277303639,0.00938027,1595.9,1595.8,1.25364]
[1744277303934,0.00938027,1595.9,1595.8,10.65504]
[1744277304235,0.00938027,1595.9,1595.8,15.65504]
[1744277304938,0.00938027,1595.9,1595.8,21.65104]
[1744277306640,0.00938027,1595.9,1595.8,16.65104]
[1744277306942,1.26294027,1595.9,1595.8,15.3974]
[1744277307239,1.26294027,1595.9,1595.8,16.65104]
[1744277307532,0.00938027,1595.9,1595.8,16.65104]
[1744277307739,0.00938027,1595.9,1595.8,21.65104]
[1744277311143,0.00938027,1595.9,1595.8,16.65104]
[1744277312448,1.26294027,1595.9,1595.8,1.6806]
[1744277312849,1.26294027,1595.9,1595.8,4.8884]
[1744277314052,2.84904027,1595.9,1595.8,4.8884]
[1744277314745,1.26294027,1595.9,1595.8,6.14204]
[1744277315445,0.00938027,1595.9,1595.8,6.14204]
[1744277315646,0.94971873,1595.9,1595.8,6.14204]
[1744277315845,0.94971873,1595.9,1595.8,12.13804]
[1744277316555,0.94971873,1595.9,1595.8,17.13804]
[1744277316854,0.94971873,1595.9,1595.8,12.13804]
[1744277319256,0.94971873,1595.9,1595.8,17.13804]
[1744277319557,0.00938027,1595.9,1595.8,17.13804]
[1744277319949,0.00938027,1595.9,1595.8,12.13804]
[1744277322849,7.37693832,1596.2,1596.1,1.2534]
[1744277323049,7.37693832,1596.2,1596.1,8.9402]
[1744277323755,7.37693832,1596.2,1596.1,10.6078]
[1744277324257,1.25332,1596.2,1596.1,10.6078]
[1744277324651,1.25332,1596.2,1596.1,16.6038]
[1744277324858,8.63954925,1596.3,1596.2,1.25332]
[1744277325051,8.63954925,1596.3,1596.2,2.92092]
[1744277325252,7.38625925,1596.3,1596.2,2.92092]
[1744277325651,7.38625925,1596.3,1596.2,13.91692]
[1744277325852,2.06163952,1596.3,1596.2,14.54412]
[1744277326052,0.62573952,1596.3,1596.2,13.91692]
[1744277326360,0.62573952,1596.3,1596.2,14.54412]
[1744277328662,9.52e-06,1596.3,1596.2,14.54412]
[1744277328963,8.34835465,1596.4,1596.3,1.25324]
[1744277329156,5.65328465,1596.4,1596.3,11.99454]
[1744277329356,5.65328465,1596.4,1596.3,16.99454]
[1744277329556,2.80506,1597.0,1596.8,1.25278]
[1744277329757,1.573,1596.9,1596.8,8.93958]
[1744277329961,1.8309,1597.1,1596.9,1.25277]
[1744277330162,2.82573,1597.0,1596.8,10.6295]
[1744277330962,1.25277,1596.9,1596.8,7.6868]
[1744277331164,2.82577,1596.9,1596.8,7.6868]
[1744277331359,1.25285,1596.8,1596.7,6.00538027]
[1744277331555,1.573,1596.8,1596.7,7.25831027]
[1744277331755,1.25283,1596.9,1596.8,1.25285]
[1744277331959,1.25283,1596.9,1596.8,10.62855]
[1744277332263,1.25283,1596.9,1596.8,7.42075]
[1744277332561,1.25283,1596.9,1596.8,6.1679]
[1744277332857,1.25283,1596.9,1596.8,7.42075]
[1744277334257,1.25283,1596.9,1596.8,10.62855]
[1744277334458,1.25283,1596.9,1596.8,7.6858]
[1744277335263,1.25283,1596.9,1596.8,4.478]
[1744277337563,1.25283,1596.9,1596.8,5.73085]
[1744277337765,1.573,1597.0,1596.9,1.25277]
[1744277337766,2.82576,1597.0,1596.9,1.25277]
[1744277337966,1.573,1597.0,1596.9,1.25277]
[1744277338164,1.573,1597.0,1596.9,2.89357]
[1744277338364,1.8309,1597.1,1597.0,1.25269]
[1744277338666,1.8309,1597.1,1597.0,6.12669]
[1744277340360,4.76702,1597.1,1597.0,4.874]
[1744277340561,1.25269,1597.0,1596.9,7.24874]
[1744277340762,2.93619,1597.0,1596.9,5.996]
[1744277341370,2.93619,1597.0,1596.9,7.24877]
[1744277341868,2.93619,1597.0,1596.9,8.87327]
[1744277342270,2.93619,1597.0,1596.9,2.87727]
[1744277342469,1.25277,1596.9,1596.8,8.9386]
[1744277342669,2.89577,1596.9,1596.8,10.5631]
[1744277342968,2.89577,1596.9,1596.8,6.0851]
[1744277343171,2.89577,1596.9,1596.8,3.2078]
[1744277343372,1.25285,1596.8,1596.7,7.25826027]
[1744277343573,3.92435,1596.8,1596.7,7.25831027]
[1744277343767,1.25316,1596.4,1596.3,15.7289957]
[1744277343966,1.25316,1596.4,1596.3,9.7329957]
[1744277344163,6.25316,1596.4,1596.3,9.7329957]
[1744277344672,7.92686,1596.4,1596.3,3.4809957]
[1744277344881,1.25324,1596.3,1596.2,14.56863958]
[1744277345165,6.13474,1596.3,1596.2,13.30991985]
[1744277345358,11.75584,1596.3,1596.2,3.28550555]
[1744277345563,1.25332,1596.2,1596.1,18.78285538]
[1744277345775,1.25356,1595.9,1595.8,3.2078]
[1744277345975,1.25354,1596.0,1595.8,3.2078]
[1744277346168,0.6211,1596.2,1595.8,4.9016]
[1744277346374,1.25354,1596.0,1595.9,1.6938]
[1744277347278,1.25356,1595.9,1595.8,3.21718027]
[1744277347677,9.46136,1595.9,1595.8,0.00938027]
[1744277349084,1.25364,1595.8,1595.7,12.4416259]
[1744277349380,6.35274,1595.8,1595.7,5.0036859]
[1744277349568,11.35274,1595.8,1595.7,5.9e-06]
[1744277350383,1.25364,1595.8,1595.7,5.9e-06]
[1744277350883,1.25364,1595.8,1595.7,1.6637059]
[1744277351578,1.25371,1595.7,1595.6,0.00938027]
[1744277353377,13.92751,1595.7,1595.6,2.7e-07]
[1744277353578,1.25411,1595.2,1595.1,1.6637]
[1744277354983,0.00938027,1595.3,1595.1,4.8715]
[1744277355178,0.00938027,1595.3,1595.2,1.25411]
[1744277355482,0.00938027,1595.3,1595.2,2.95251]
[1744277355685,0.00938027,1595.3,1595.2,14.96571]
[1744277355885,1.25379,1595.6,1595.5,1.25386]
[1744277356087,1.25368,1595.8,1595.6,1.25375]
[1744277356281,1.25374,1595.7,1595.5,1.25381]
[1744277357286,1.25374,1595.7,1595.6,3.2078]
[1744277359088,1.26308027,1595.8,1595.6,4.46159]
[1744277359289,1.26308027,1595.8,1595.7,1.25371]
[1744277359490,0.00938027,1595.8,1595.7,1.25371]
[1744277359989,1.25371,1595.7,1595.6,7.6748]
[1744277360888,1.25371,1595.7,1595.6,8.92859]
[1744277361084,1.26306027,1595.8,1595.6,8.92859]
[1744277361786,1.25371,1595.7,1595.6,7.6748]
[1744277362377,1.25371,1595.7,1595.6,8.92859]
[1744277362581,1.25371,1595.7,1595.6,7.6748]
[1744277362884,1.25371,1595.7,1595.6,8.92859]
[1744277363085,1.25371,1595.7,1595.6,7.6748]
[1744277363787,1.25371,1595.7,1595.6,3.2078]
[1744277364289,0.00938027,1595.8,1595.6,3.2078]
[1744277364484,0.00938027,1595.8,1595.7,1.25371]
[1744277364690,0.00938027,1595.8,1595.7,2.26881]
[1744277366694,1.26302027,1595.8,1595.7,1.0151]
[1744277367589,0.00938027,1595.8,1595.7,2.26881]
[1744277368388,1.26302027,1595.8,1595.7,2.26881]
[1744277368691,1.26302027,1595.8,1595.7,1.0151]
[1744277369087,1.26302027,1595.8,1595.7,2.26881]
[1744277369488,0.00938027,1595.8,1595.7,7.26881]
[1744277369793,0.00938027,1595.8,1595.7,2.26881]
[1744277370793,1.87454,1596.1,1596.0,1.25348]
[1744277370794,0.6211,1596.1,1596.0,1.25348]
[1744277370993,0.6211,1596.1,1595.8,3.13408]
[1744277370994,1.25339,1596.2,1596.1,1.2534]
[1744277371289,1.25339,1596.2,1595.9,3.2078]
[1744277371290,1.25339,1596.2,1596.0,1.25342]
[1744277371494,1.25348,1596.0,1595.9,4.46133]
[1744277371695,1.25348,1596.1,1595.9,4.46133]
[1744277371887,1.25348,1596.0,1595.9,4.7814]
[1744277372084,1.25348,1596.0,1595.8,10.47238027]
[1744277372085,1.25356,1595.9,1595.8,11.72595027]
[1744277372288,1.25356,1595.9,1595.8,10.47238027]
[1744277372485,1.25356,1595.9,1595.8,6.00538027]
[1744277374495,1.25356,1595.9,1595.8,0.00938027]
[1744277374691,6.25356,1595.9,1595.8,0.00938027]
[1744277378391,10.72056,1595.9,1595.8,0.00938027]
[1744277378783,1.25356,1595.9,1595.8,0.00938027]
[1744277379495,0.00938027,1596.1,1595.8,0.00938027]
[1744277379697,1.25356,1595.9,1595.8,1.06638027]
[1744277379997,1.25351,1596.0,1595.8,1.06638027]
[1744277380198,0.00938027,1596.1,1595.8,1.06638027]
[1744277380199,1.25356,1595.9,1595.8,1.06638027]
[1744277381700,1.25356,1595.9,1595.8,0.00938027]
[1744277382086,0.00938027,1596.1,1595.8,0.00938027]
[1744277382291,0.00938027,1596.1,1596.0,1.25348]
[1744277383301,0.00938027,1596.1,1595.9,4.46133]
[1744277383597,1.26282027,1596.1,1596.0,1.25348]
[1744277384399,1.25348,1596.0,1595.9,3.2078]
[1744277384603,0.00938027,1596.1,1596.0,1.25348]
[1744277387998,1.26278027,1596.1,1596.0,1.25348]
[1744277388301,0.00938027,1596.1,1596.0,1.25348]
[1744277389597,4.88774687,1596.3,1596.2,1.25332]
[1744277389798,4.88774687,1596.3,1596.2,8.94112]
[1744277389999,4.88774687,1596.3,1596.2,13.94112]
[1744277391203,4.88774687,1596.3,1596.2,8.94112]
[1744277391396,8.61708238,1596.3,1596.2,7.6878]
[1744277392705,8.61708238,1596.3,1596.2,10.64702]
[1744277392905,8.61708238,1596.3,1596.2,6.16702]
[1744277393100,7.36384238,1596.3,1596.2,6.16702]
[1744277393805,8.61708238,1596.3,1596.2,6.16702]
[1744277394002,7.36384238,1596.3,1596.2,6.16702]
[1744277396509,6.1717504,1596.4,1596.3,1.25324]
[1744277396708,6.1717504,1596.4,1596.3,2.90454]
[1744277396902,4.9185404,1596.4,1596.3,2.90454]
[1744277397406,7.36384238,1596.5,1596.4,1.25316]
[1744277397706,8.61693238,1596.5,1596.4,4.46096]
[1744277397907,7.36384238,1596.5,1596.4,4.46096]
[1744277398808,8.61693238,1596.5,1596.4,4.46096]
[1744277399109,7.36384238,1596.5,1596.4,4.46096]
[1744277399509,8.61693238,1596.5,1596.4,3.2078]
[1744277399706,3.13299,1596.4,1596.2,3.2078]
[1744277399906,4.75422,1596.4,1596.1,1.0064]
[1744277400105,1.25332,1596.2,1596.1,1.0064]
[1744277400406,1.25356,1595.9,1595.8,6.00538027]
[1744277400709,1.25356,1595.9,1595.8,0.00938027]
[1744277401698,1.25356,1595.9,1595.8,1.66268027]
[1744277401902,1.6213,1596.0,1595.8,2.91632027]
[1744277402211,1.25356,1595.9,1595.8,1.66268027]
[1744277402514,1.25356,1595.9,1595.8,0.00938027]
[1744277404008,1.0377,1596.1,1595.8,0.00938027]
[1744277404211,1.25342,1596.1,1595.9,1.25348]
[1744277404420,1.25338,1596.2,1596.0,2.25266]
[1744277404714,1.87438,1596.3,1596.1,1.0356]
[1744277404903,1.25322,1596.4,1596.1,1.0356]
[1744277405110,1.25314,1596.5,1596.3,1.25324]
[1744277405407,2.82834,1596.6,1596.4,1.25312]
[1744277405613,8.61669238,1596.8,1596.4,3.2078]
[1744277405805,8.61669238,1596.8,1596.6,4.46074]
[1744277406112,7.36384238,1596.8,1596.7,2.31363]
[1744277406312,8.61669238,1596.8,1596.7,1.0607]
[1744277406714,7.36384238,1596.8,1596.7,1.0607]
[1744277406914,8.61669238,1596.8,1596.7,1.0607]
[1744277407107,1.25285,1596.8,1596.7,1.0607]
[1744277407618,1.25283,1596.9,1596.7,2.31358]
[1744277407917,1.25285,1596.8,1596.7,1.0607]
[1744277408214,1.25293,1596.7,1596.6,9.21318027]
[1744277408413,2.83781,1596.8,1596.6,10.46618027]
[1744277409519,10.81939,1597.1,1596.6,9.21318027]
[1744277409812,1.25287,1596.8,1596.6,4.47013027]
[1744277410815,1.25284,1596.9,1596.7,1.25293]
[1744277411111,1.25284,1596.9,1596.7,2.26423]
[1744277411315,2.88855,1597.0,1596.8,4.46065]
[1744277411504,1.25275,1597.0,1596.8,4.46065]
[1744277411709,1.25277,1596.9,1596.8,3.2078]
[1744277412411,1.6021,1597.0,1596.8,4.46065]
[1744277412608,8.95611503,1597.0,1596.8,4.46065]
[1744277413514,1.25277,1596.9,1596.8,4.46065]
[1744277413811,10.20885503,1597.0,1596.8,3.2078]
[1744277414015,8.60675503,1597.0,1596.8,4.4606]
[1744277414409,1.25277,1596.9,1596.8,3.2078]
[1744277415012,8.60677503,1597.0,1596.8,4.46062]
[1744277416102,7.35401503,1597.0,1596.9,1.25277]
[1744277416504,7.35401503,1597.0,1596.9,2.27457]
[1744277418218,7.35401503,1597.0,1596.9,7.27457]
[1744277418611,0.37461504,1597.0,1596.9,7.27457]
[1744277419008,1.62707504,1597.3,1597.2,1.25254]
[1744277419213,1.62707504,1597.3,1597.2,8.93334]
[1744277420319,1.62707504,1597.3,1597.2,7.6808]
[1744277420517,3.18357504,1597.3,1597.2,3.2078]
[1744277422014,3.18357504,1597.3,1597.2,4.7643]
[1744277422318,2.80896,1597.3,1597.2,4.7643]
[1744277422511,2.80896,1597.3,1597.2,6.01684]
[1744277423721,2.80896,1597.3,1597.2,4.7643]
[1744277423919,1.5565,1597.3,1597.0,14.92845]
[1744277424218,1.25262,1597.1,1597.0,16.61135]
[1744277424424,1.25262,1597.1,1597.0,8.93245]
[1744277424711,10.31154,1597.4,1597.0,13.6758]
[1744277424712,0.8416,1597.4,1597.0,13.6758]
[1744277424919,2.91414,1597.6,1597.4,1.25232]
[1744277425121,1.6619,1597.6,1597.3,4.472]
[1744277425310,1.25238,1597.4,1597.3,4.472]
[1744277426018,1.25238,1597.4,1597.2,4.46028]
[1744277426219,2.6865,1597.5,1597.2,4.46028]
[1744277426220,3.93886,1597.5,1597.3,1.25246]
[1744277426418,2.6865,1597.5,1597.2,3.2078]
[1744277426613,1.6943,1597.4,1597.1,5.7246]
[1744277426914,1.25254,1597.2,1597.1,4.472]
[1744277427216,1.25269,1597.0,1596.9,2.0414]
[1744277427410,1.25277,1596.9,1596.8,13.6758]
[1744277427610,1.25277,1596.9,1596.8,4.472]
[1744277428216,1.25285,1596.8,1596.7,1.0433]
[1744277429017,1.25293,1596.7,1596.6,0.00938027]
[1744277429210,9.08493,1596.7,1596.6,2.7e-07]
[1744277429519,14.08493,1596.7,1596.6,2.7e-07]
[1744277432321,9.08493,1596.7,1596.6,2.7e-07]
[1744277433116,8.46383,1596.7,1596.6,2.7e-07]
[1744277433315,13.46383,1596.7,1596.6,2.7e-07]
[1744277434827,14.40388486,1596.7,1596.6,2.7e-07]
[1744277435923,14.40388486,1596.7,1596.0,5.996]
[1744277435924,3.13253,1596.6,1596.0,5.996]
[1744277436120,3.13253,1596.6,1595.7,5.72665]
[1744277436121,1.25356,1595.9,1595.7,5.72665]
[1744277436320,1.25343,1596.1,1595.9,4.46132]
[1744277436528,9.17012,1596.3,1595.9,3.2078]
[1744277436730,1.25348,1596.0,1595.9,3.2078]
[1744277437229,1.25356,1595.9,1595.8,1.26296027]
[1744277437522,1.25353,1596.0,1595.8,1.26296027]
[1744277437729,1.25356,1595.9,1595.8,0.00938027]
[1744277438829,2.29966,1595.9,1595.8,0.00938027]
[1744277441423,3.92226,1595.9,1595.8,0.00938027]
[1744277441828,1.25352,1596.0,1595.8,6.70998027]
[1744277442030,1.25352,1596.0,1595.9,1.7006]
[1744277443633,1.25356,1595.9,1595.8,0.00938027]
[1744277443835,1.25356,1595.9,1595.8,1.70998027]
[1744277445528,0.00938027,1596.1,1595.8,2.96359027]
[1744277445835,1.26281027,1596.1,1595.9,1.2535]
[1744277446031,1.26281027,1596.1,1596.0,2.7224]
[1744277446232,0.00938027,1596.1,1596.0,3.97588]
[1744277447025,0.00938027,1596.1,1596.0,8.97588]
[1744277447336,1.26278027,1596.1,1596.0,2.7224]
[1744277447829,1.26278027,1596.1,1596.0,3.7224]
[1744277449128,0.00938027,1596.1,1596.0,9.97588]
[1744277449635,1.25319,1596.4,1596.2,1.25326]
[1744277449847,1.25319,1596.4,1596.3,4.8183]
[1744277450338,1.25319,1596.4,1596.3,5.8813]
[1744277450928,1.25319,1596.4,1596.3,1.6105]
[1744277451238,1.25332,1596.2,1596.1,5.996]
[1744277451732,1.25332,1596.2,1596.1,7.5517]
[1744277451934,2.89742,1596.2,1596.1,7.5517]
[1744277452138,2.89742,1596.2,1596.1,1.5557]
[1744277452440,1.2534,1596.1,1596.0,1.0]
[1744277454834,1.2534,1596.1,1596.0,2.5557]
[1744277455740,9.86981,1596.4,1596.0,2.5557]
[1744277455930,9.86981,1596.4,1596.1,3.6523]
[1744277456131,1.25324,1596.3,1596.2,1.5557]
[1744277456629,1.25322,1596.4,1596.2,4.7635]
[1744277456839,1.25322,1596.4,1596.2,6.01679]
[1744277457138,1.25322,1596.4,1596.3,1.6312]
[1744277460744,2.94712,1596.4,1596.3,1.6312]
[1744277461043,1.25322,1596.4,1596.3,1.6312]
[1744277461244,1.25315,1596.5,1596.3,2.88444]
[1744277461443,1.25309,1596.5,1596.4,1.6735]
[1744277462538,1.25305,1596.6,1596.4,6.13443]
[1744277462741,1.25305,1596.6,1596.5,3.7471]
[1744277464742,1.25305,1596.6,1596.5,5.00019]
[1744277464945,1.25305,1596.6,1596.5,3.7471]
[1744277465138,1.25305,1596.6,1596.5,1.6735]
[1744277465443,1.25324,1596.3,1596.2,1.0891]
[1744277466142,1.25324,1596.3,1596.2,2.6791]
[1744277471155,1.25324,1596.3,1596.2,1.59]
[1744277471359,1.2534,1596.1,1596.0,4.2078]
[1744277472256,1.2534,1596.1,1596.0,1.0]
[1744277472655,1.2534,1596.1,1596.0,2.5548]
[1744277476654,3.80001652,1596.1,1596.0,2.5548]
[1744277477158,3.80001652,1596.1,1596.0,1.0]
[1744277477357,14.27641652,1596.1,1596.0,1.0]
[1744277477556,9.27641652,1596.1,1596.0,1.0]
[1744277477752,12.48421652,1596.1,1596.0,1.0]
[1744277478060,9.27641652,1596.1,1596.0,1.0]
[1744277478263,2.19361652,1596.1,1596.0,1.0]
[1744277478465,2.19361652,1596.1,1596.0,2.0575]
[1744277478663,2.19361652,1596.1,1596.0,1.0]
[1744277478849,3.89041652,1596.1,1596.0,1.0]
[1744277480467,2.19361652,1596.1,1596.0,1.0]
[1744277481462,7.19361652,1596.1,1596.0,1.0]
[1744277481664,1.25356,1595.9,1595.8,0.00938027]
[1744277481870,9.49846,1595.9,1595.8,1e-08]
[1744277482071,14.49846,1595.9,1595.8,1e-08]
[1744277482270,17.07916,1595.9,1595.8,1e-08]
[1744277484358,4.45536,1595.9,1595.8,1e-08]
[1744277484966,0.00938026,1596.0,1595.8,1e-08]
[1744277485167,0.00938026,1596.0,1595.9,7.24956]
[1744277485368,0.94021652,1596.1,1596.0,1.25348]
[1744277485672,0.94021652,1596.1,1596.0,8.87728]
[1744277485966,0.94021652,1596.1,1596.0,14.2403]
[1744277486175,2.19361652,1596.1,1596.0,9.2403]
[1744277486569,0.94021652,1596.1,1596.0,9.2403]
[1744277486862,2.19361652,1596.1,1596.0,9.2403]
[1744277487062,1.25338,1596.2,1596.0,9.2403]
[1744277487266,1.2533,1596.3,1596.1,2.86989]
[1744277487464,1.25322,1596.4,1596.2,7.20622]
[1744277487665,1.25322,1596.4,1596.3,1.6902]
[1744277488271,1.25315,1596.5,1596.3,1.6902]
[1744277488462,1.25315,1596.5,1596.3,4.07782]
[1744277488662,1.253,1596.7,1596.4,4.46093]
[1744277488866,1.253,1596.7,1596.4,6.15113]
[1744277489072,1.253,1596.7,1596.5,1.6902]
[1744277490473,7.1504,1596.9,1596.5,1.6902]
[1744277490674,1.25301,1596.6,1596.5,1.6902]
[1744277491874,3.13186,1597.0,1596.5,1.6902]
[1744277492071,1.25299,1596.7,1596.6,1.2103]
[1744277492768,7.3644704,1596.8,1596.7,1.25293]
[1744277492966,7.3644704,1596.8,1596.7,4.03013]
[1744277493373,8.6173204,1596.8,1596.7,2.7772]
[1744277493574,8.6173204,1596.8,1596.7,4.03013]
[1744277494073,7.3644704,1596.8,1596.7,9.03013]
[1744277495077,2.9735704,1596.8,1596.7,15.02613]
[1744277496172,7.07e-06,1597.1,1597.0,1.25269]
[1744277496375,14.51681861,1597.4,1597.3,1.25246]
[1744277496574,14.51681861,1597.4,1597.3,8.87526]
[1744277496772,14.51681861,1597.4,1597.3,13.87526]
[1744277497079,14.51681861,1597.4,1597.3,19.87126]
[1744277498279,9.80830554,1597.4,1597.3,14.87126]
[1744277499277,9.80830554,1597.4,1597.3,17.72626]
[1744277499779,9.80830554,1597.4,1597.3,7.31526]
[1744277499978,9.80830554,1597.4,1597.3,11.72926]
[1744277503292,1.5663,1598.0,1597.8,1.25204]
[1744277503584,15.34489387,1598.0,1597.9,3.2078]
[1744277503983,15.34489387,1598.0,1597.9,4.45979]
[1744277504169,3.2078,1598.8,1597.9,17.43373]
[1744277504374,1.25132,1598.8,1598.5,1.25148]
[1744277504575,1.25146,1598.6,1598.3,5.996]
[1744277504879,1.2516,1598.4,1598.3,4.481]
[1744277505079,1.25167,1598.3,1598.2,3.2078]
[1744277505273,12.94003387,1598.5,1598.2,3.2078]
[1744277505468,11.68849387,1598.5,1598.3,1.25163]
[1744277505676,11.68849387,1598.5,1598.4,1.2516]
[1744277505978,12.94004387,1598.5,1598.3,2.91805]
[1744277506783,11.68849387,1598.5,1598.3,2.91805]
[1744277506983,12.94005387,1598.5,1598.3,2.91807]
[1744277507784,1.2516,1598.4,1598.2,4.45951]
[1744277507977,1.5765,1598.3,1598.2,3.2078]
[1744277508181,2.82817,1598.3,1598.2,3.2078]
[1744277508377,1.25176,1598.2,1598.0,4.45967]
[1744277508683,1.25176,1598.2,1597.7,9.13570027]